Cogmind - Beta 10.2 @@@ ROGUE MODE // 2021.12.02 @ 08:34:12 Player: TheSlyFawkes Result: Self-destructed Performance ------------- Evolutions (1) 500 Regions Visited (3) 600 Robots Destroyed (12) 60 Value Destroyed (193) 193 Prototype IDs (0) 0 Alien Tech Used (0) 0 Bonus (0) 0 TOTAL SCORE: 1353 Bonus ------- None Cogmind --------- Core Integrity 386/400 Matter 275/300 Energy 182/185 System Corruption 0% Temperature Cool (3) Movement Hovering (52) Location -9/Materials Parts ------- > --- POWER (2) -------- Light Ion Engine Light Nuclear Core > --- PROPULSION (3) --- Hover Unit Hover Unit Hover Unit > --- UTILITY (2) ------ Improved Sensor Array ECM Suite > --- WEAPON (2) ------- Datajack > --- INVENTORY (4) ---- Hover Unit Improved Heat Sink Peak State ------------ > --- POWER ------------ Light Ion Engine Light Nuclear Core > --- PROPULSION ------- Hover Unit Hover Unit Hover Unit > --- UTILITY ---------- Improved Sensor Array ECM Suite > --- WEAPON ----------- Light Assault Rifle Datajack > --- INVENTORY -------- Hover Unit Improved Heat Sink [Rating: 12] Favorites ----------- Power Light Ion Engine Engine Light Ion Engine Power Core Light Nuclear Core Propulsion Hover Unit Wheel Compact Wheel Hover Unit Hover Unit Flight Unit Flight Unit Utility ECM Suite Device ECM Suite Weapon Light Assault Rifle Energy Gun Medium Laser Ballistic Gun Light Assault Rifle Special Melee Weapon Datajack Build | -11 -10 -10 -9 ------- Run | Scr Mat Min Mat Slots Evolved 2 | . . . 2 Power 1 | . . . 1 Propulsion 1 | . . . 1 Utility . | . . . . Weapon . | . . . . Parts Attached 21 | 5 11 2 3 Power 4 | 1 1 1 1 Engine 3 | 1 1 . 1 Core 1 | . . 1 . Reactor . | . . . . Propulsion 9 | 2 5 1 1 Treads . | . . . . Leg . | . . . . Wheel 2 | 2 . . . Hover 5 | . 3 1 1 Flight 2 | . 2 . . Utility 4 | . 3 . 1 Device 4 | . 3 . 1 Storage . | . . . . Processor . | . . . . Hackware . | . . . . Protection . | . . . . Artifact . | . . . . Weapon 4 | 2 2 . . Energy Gun 1 | 1 . . . Energy Cannon . | . . . . Ballistic Gun 2 | 1 1 . . Ballistic Cannon . | . . . . Launcher . | . . . . Special Weapon . | . . . . Impact Weapon . | . . . . Slashing Weapon . | . . . . Piercing Weapon . | . . . . Special Melee Weapon 1 | . 1 . . Unidentified Prototypes . | . . . . Parts Lost 2 | . 1 . 1 Power . | . . . . Propulsion . | . . . . Utility . | . . . . Weapon 2 | . 1 . 1 Highest Loss Streak 1 | . 1 . 1 Average Slot Usage (%) 91 | . 86 100 98 Engine 12 | . 14 10 11 Core 3 | . . 3 11 Wheel 8 | . 15 . . Hover 20 | . 12 28 33 Device 19 | . 15 28 22 Energy Gun 3 | . 5 . . Ballistic Gun 15 | . 18 14 9 Special Melee Weapon 7 | . 3 14 11 Naked Turns . | . . . . Heaviest Build 12 | 8 9 9 12 Greatest Support 26 | 26 26 12 18 Greatest Overweight (x) 1 | . 1 . . Average Overweight (x) . | . . . . Largest Inventory Capacity 4 | 4 4 4 4 Average Capacity 4 | 4 4 4 4 Most Carried 4 | 4 4 4 3 Average Carried 3 | 3 3 3 2 Final Capacity 4 | 4 4 4 4 Final Carried 4 | 4 4 4 2 Class Distribution -------------------- 93% | Mutant 6% | Scavenger-Mutant Dominant Class ---------------- Mutant | -10/Materials Mutant | -10/Mines Mutant | -9/Materials Resources | -11 -10 -10 -9 ----------- Run | Scr Mat Min Mat Matter Collected 443 | 258 165 20 . Remotely . | . . . . Salvage Created 398 | 97 301 . . Parts 24 | 3 21 . . Haulers Intercepted 1 | . 1 . . Recyclers Shooed . | . . . . Parts Field Recycled . | . . . . Retrieved Matter . | . . . . Parts Self-Destructed . | . . . . Prevented . | . . . . Kills | -11 -10 -10 -9 ------- Run | Scr Mat Min Mat Combat Hostiles Destroyed 6 | . 6 . . Guns 6 | . 6 . . Classes Destroyed 7 | 2 5 . . Worker 1 | . 1 . . Tunneler 1 | 1 . . . Hauler 1 | . 1 . . Recycler 1 | 1 . . . Watcher 2 | . 2 . . Swarmer 3 | . 3 . . Grunt 3 | . 3 . . Best Kill Streak 5 | 1 5 . . Combat Bots Only 3 | . 3 . . Max Kills in Single Turn 2 | 1 2 . . Gunslinging . | . . . . Exploded . | . . . . Melee . | . . . . Uniques/NPCs Destroyed . | . . . . Combat | -11 -10 -10 -9 -------- Run | Scr Mat Min Mat Damage Taken 415 | . 293 16 106 Core 77 | . 63 . 14 Absorbed by Shields . | . . . . Core Remaining (%) 87 | 100 . 74 . Volleys Fired 42 | 8 34 . . Largest 2 | 2 2 . . Hottest 70 | 70 70 . . Shots Fired 80 | 16 64 . . Gun 80 | 16 64 . . Cannon . | . . . . Launcher . | . . . . Special . | . . . . Kinetic 64 | 8 56 . . Thermal 16 | 8 8 . . Explosive . | . . . . Electromagnetic . | . . . . Robot Hit Streak 24 | 5 24 . . Robot Miss Streak 4 | 2 4 . . Penetration Max . | . . . . Secondary Targets 1 | . 1 . . Max Gunslinging Chain 1 | . 1 . . Shots Hit Robots 53 | 11 39 2 1 Core Hits 21 | 3 18 . . Critical Hits 1 | . 1 . . Critical Kills . | . . . . Critical Parts Destroyed 1 | . 1 . . Melee Attacks 3 | . . 2 1 Impact . | . . . . Slashing . | . . . . Piercing . | . . . . Sneak Attacks 3 | . . 2 1 Combat Hostiles . | . . . . Follow-up Attacks . | . . . . Damage Inflicted 463 | 108 355 . . Guns 463 | 108 355 . . Cannons . | . . . . Explosions . | . . . . Melee . | . . . . Ramming . | . . . . Kinetic 291 | 33 258 . . Thermal 172 | 75 97 . . Explosive . | . . . . Electromagnetic . | . . . . Impact . | . . . . Slashing . | . . . . Piercing . | . . . . Highest Corruption . | . . . . Average Corruption . | . . . . Corruption Purged . | . . . . Overload Shots . | . . . . Overflow Damage . | . . . . Projectiles . | . . . . Explosions . | . . . . Melee . | . . . . Knockbacks . | . . . . Impact . | . . . . Kinetic . | . . . . Secondary . | . . . . Self-Inflicted Damage . | . . . . Shots . | . . . . Rammed . | . . . . Targets Rammed . | . . . . Kicked . | . . . . Crushed . | . . . . Highest Temperature 197 | 40 197 . 2 Average Temperature 59 | 20 94 . 2 Received Heat Transfer 159 | . 120 9 30 Siege Activations . | . . . . Robots Corrupted . | . . . . Combat Hostiles . | . . . . Parts Fried . | . . . . Impact Corruptions . | . . . . Robots Melted . | . . . . Combat Hostiles . | . . . . Parts Melted 1 | . 1 . . Heat Transferred 518 | 222 296 . . Parts Sabotaged . | . . . . Parts Stolen . | . . . . Parts Stripped . | . . . . Power Chain Reactions . | . . . . Missiles Intercepted . | . . . . Alert | -11 -10 -10 -9 ------- Run | Scr Mat Min Mat Peak Influence 260 | 10 260 73 192 Initial 43 | . 6 43 27 Average 62 | 2 73 54 68 Maximum Alert Level 1 | . 1 . . Low Security (%) 95 | 100 90 100 100 Level 1 4 | . 9 . . Level 2 . | . . . . Level 3 . | . . . . Level 4 . | . . . . Level 5 . | . . . . High Security . | . . . . Max Security . | . . . . Squads Dispatched 1 | . . . 1 Investigation . | . . . . Extermination . | . . . . Reinforcement 1 | . . . 1 Assault . | . . . . Garrison . | . . . . Intercept . | . . . . Construction Impeded . | . . . . Haulers Reinforced . | . . . . Stealth | -11 -10 -10 -9 --------- Run | Scr Mat Min Mat Distress Signals 1 | . 1 . . Communications Jammed . | . . . . Distress Signals . | . . . . Times Spotted 32 | . 17 2 13 Peak Tracking Total 6 | . 3 2 6 Tactical Retreats 7 | . 4 1 2 Traps | -11 -10 -10 -9 ------- Run | Scr Mat Min Mat Traps Triggered . | . . . . Indirectly . | . . . . Trap Hack Attempts 11 | . . . 11 Triggered . | . . . . Disarmed 1 | . . . 1 Reprogrammed . | . . . . Reused . | . . . . Traps Extracted . | . . . . Installed . | . . . . Triggered . | . . . . Machines | -11 -10 -10 -9 ---------- Run | Scr Mat Min Mat Machines Disabled . | . . . . Max in Single Turn . | . . . . Machines Sabotaged . | . . . . Garrisons Compromised . | . . . . Overloaded Fab Kills . | . . . . Fab Network Shutdowns . | . . . . Hacking | -11 -10 -10 -9 --------- Run | Scr Mat Min Mat Machines Accessed 7 | . 5 . 2 Terminals 7 | . 5 . 2 Fabricators . | . . . . Repair Stations . | . . . . Recycling Units . | . . . . Scanalyzers . | . . . . Garrison Access . | . . . . Total Hacks 23 | . 15 . 8 Successful 6 | . 3 . 3 Failed 17 | . 12 . 5 Catastrophic . | . . . . Database Lockouts . | . . . . Manual 15 | . 10 . 5 Terminals 23 | . 15 . 8 Fabricators . | . . . . Repair Stations . | . . . . Recycling Units . | . . . . Scanalyzers . | . . . . Garrison Access . | . . . . Terminal Hacks 6 | . 3 . 3 Terminal Index 2 | . 1 . 1 Alert Level 1 | . . . 1 Locate Traps 2 | . 1 . 1 Zone Layout 1 | . 1 . . Fabricator Hacks . | . . . . Repair Station Hacks . | . . . . Recycling Unit Hacks . | . . . . Scanalyzer . | . . . . Garrison Access Hacks . | . . . . Unauthorized Hacks . | . . . . Terminals . | . . . . Fabricators . | . . . . Repair Stations . | . . . . Recycling Units . | . . . . Scanalyzers . | . . . . Garrison Access . | . . . . Data Cores Recovered . | . . . . Used . | . . . . Hacking Detections 7 | . 5 . 2 Full Trace Events . | . . . . Feedback Events . | . . . . Feedback Blocked . | . . . . Robot Schematics Acquired . | . . . . Robots Built . | . . . . Matter . | . . . . Time . | . . . . Total Robot Build Rating . | . . . . Part Schematics Acquired . | . . . . Parts Built . | . . . . Matter . | . . . . Time . | . . . . Total Part Build Rating . | . . . . Parts Repaired . | . . . . Time . | . . . . Parts Recycled . | . . . . Recycled Matter . | . . . . Retrieved Matter . | . . . . Retrieved Components . | . . . . Parts Scanalyzed . | . . . . Part Schematics Acquired . | . . . . Parts Damaged . | . . . . Bothacking | -11 -10 -10 -9 ------------ Run | Scr Mat Min Mat Used RIF Installer . | . . . . Robots Hacked 2 | . . 1 1 Non-combat 2 | . . 1 1 Combat . | . . . . Robot Hacks Applied 2 | . . 1 1 no_distress 2 | . . 1 1 Relay Couplers Released . | . . . . Robots Rewired . | . . . . Allies Hacked . | . . . . Hacks Repelled . | . . . . Allies | -11 -10 -10 -9 -------- Run | Scr Mat Min Mat Total Allies . | . . . . Largest Group . | . . . . Highest-Rated Group . | . . . . Highest-Rated Ally . | . . . . Total Orders . | . . . . Ally Attacks . | . . . . Total Damage . | . . . . Kills . | . . . . Allies Corrupted . | . . . . Allies Melted . | . . . . Intel | -11 -10 -10 -9 ------- Run | Scr Mat Min Mat Robot Analysis Total . | . . . . Derelict Logs Recovered 1 | . . 1 . Drone Launches . | . . . . Drone Recoveries . | . . . . Exploration | -11 -10 -10 -9 ------------- Run | Scr Mat Min Mat Turns Passed 1283 | 115 651 255 262 Spaces Moved 1506 | 95 685 412 314 Core 22 | 21 1 . . Treads . | . . . . Legs . | . . . . Wheels 297 | 74 223 . . Hover 1172 | . 446 412 314 Flight 15 | . 15 . . Fastest Speed 37 | 50 37 56 52 Average Speed 61 | 81 66 56 52 Slowest Speed 100 | 100 100 56 52 Overloaded Moves . | . . . . Propulsion Burnouts . | . . . . Robots Hopped . | . . . . Cave-ins Triggered . | . . . . Exploration Rate (%) 39 | 4 61 70 22 Regions Visited 3 Branch Regions 1 Pre-discovered Areas 1 | . . 1 . Known Exits Taken . | . . . . Unknown Exits Taken 3 | 1 1 1 . Scrap Searched 1 | . . 1 . Spaces Dug . | . . . . Terrain Destroyed . | . . . . Melee . | . . . . Projectile . | . . . . AOE . | . . . . Terrain Rammed . | . . . . Walls Destroyed . | . . . . Machines Disabled . | . . . . Actions | -11 -10 -10 -9 --------- Run | Scr Mat Min Mat Total 1789 | 116 828 433 412 Wait 177 | 3 79 14 81 Move 1503 | 94 684 411 314 Hop . | . . . . Pick Up 18 | 5 10 2 1 Fast Attach 7 | 5 2 . . Attach 9 | . 6 . 3 Detach . | . . . . Swap 5 | . 3 2 . Drop 14 | 1 10 2 1 Fire 42 | 8 34 . . Melee 3 | . . 2 1 Ram . | . . . . Kick . | . . . . Crush . | . . . . Escape Stasis . | . . . . Rewire . | . . . . Trap 11 | . . . 11 Miscellaneous . | . . . . Route ------- -11/Scrapyard -10/Materials (discovered 3 exits: *Mat x2 / [*Min]) -10/Mines (discovered 2 exits: *Mat x2) -9/Materials History --------- Turn | Location | Event 46 | -11/Scrapyard | Discovered new exit (range 15) 116 | -11/Scrapyard | Entered Materials 140 | -10/Materials | Discovered new exit (range 14) 307 | -10/Materials | Build established: Mutant 543 | -10/Materials | Discovered new exit (range 10) 658 | -10/Materials | Discovered new exit (range 6) 767 | -10/Materials | Entered Mines 769 | -10/Mines | Met a Derelict bent on vengeance 795 | -10/Mines | Learned location of Storage (-7) 869 | -10/Mines | Discovered new exit (range 10) 991 | -10/Mines | Discovered new exit (range 8) 1003 | -10/Mines | Assembled infested the area 1008 | -10/Mines | Assisted by a Guerilla fighting off Assembled 1022 | -10/Mines | Entered Materials 1022 | -9/Materials | Evolved 2 slots: Power x1, Propulsion x1 1284 | -9/Materials | Self-destructed Last Messages --------------- Map updated. K-01 Serf collects debris. Dropped Sensor Array. Acquired Imp. Sensor Array. R-06 Scavenger collects Sensor Array. Attempting to reprogram Alarm Trap. Alarm Trap disarmed. K-01 Serf collects debris. Connecting with Terminal... >>Alert(Check) Current Alert Level: Low Security >>Index(Terminals) Found 12 terminals. Downloaded coordinate data. Sneak attack on R-06 Scavenger. Jacked R-06 Scavenger... >>no_distress Distress signal routine blocked. K-01 Serf collects debris. Lgt. Assault Rifle destroyed. Map ----- +----------------------------------------------------+ | ??????????????????????# # # ## # | | ??????????????????????# + ! # ####### | | ??????????????????????# # """ #""" + | | ??????????????????????# # """ #"R # | | ??????????????????????# #? """ #""" ] #" | | ??????????????????????# #? ?# #T | | ??????????????????????# #??############+#" | | ??????????????????????# #?????????????# """ | | ??????????????????????# #?????????????# """ | | ??????????????????????# #?????????????# * """ | | ??????????????????????# ##########????# | | ??????????????????????# # #????# | | ??????????????????????# # #????# | | ??????????????????????# # #????# ######## | | ??????????????????????# # ###### #?###### | | ??????????????????????# + ? ? + #?# | | ??????????????????????# # ###### #?# | | ??????????????????????# g# #????# ### | | ??????????????????????# # #????# # | | ??????????????????????# # #????# + | | ??????????????????????# ##########????# # | | ??????????????????????# #?????????????+ # | | ??????????????????????# #?????????????# # | | ??????????????????????# #?????????????# # | | ??????????????????????# #?????????????# ###### | | ??????????????????????# @#?????????????# #????? | | ??????????????????????#ggk#?????????????# #????? | | ??????????????????????# #?????????????# #????? | | ??????????????????????#g #?????????????# #????? | | ?????????????????????? k#?????????????# #????? | | ????????????????????? #?????????????# #????? | | ???????????????????? #?????????????# #????? | | ??????????????????? #????????????? ????? | | ?????????????????? ????????????? ????? | | ?????????????????? ?????????????? ?????? | | ?????????????????###### ??????????????????????? | | ??????????????????????####+??????????????????????? | | ?????????????????????????????????????????????????? | | ?????????????????????????????????????????????????? | | ?????????????????????????????????????????????????? | | ?????????????????????????????????????????????????? | | ?????????????????????????????????????????????????? | | ?????????????????????????????????????????????????? | | ?????????????????????????????????????????????????? | | ?????????????????????????????????????????????????? | | ?????????????????????????????????????????????????? | | ?????????????????????????????????????????????????? | | ?????????????????????????????????????????????????? | | ?????????????????????????????????????????????????? | | ?????????????????????????????????????????????????? | +----------------------------------------------------+ Best States ------------- Heat Dissipation 39 Energy Generation 19 Energy Capacity 250 Matter Stores 300 Matter Capacity 300 Sight Range 16 Robot Scan Range 13 Terrain Scan Density 10 ECM Strength 1 Evasion (%) 54 Item Schematics ----------------- None Robot Schematics ------------------ None Fabricated ------------ Nothing Alien Tech Used ----------------- None Achievements -------------- None Challenges ------------ None Game ------ Seed CloakingFluxArray Manual? 0 Play Time 00:20:38 Cumulative 23.7 hours Start 2021.12.02 @ 08:14:34 End 2021.12.02 @ 08:34:12 Sessions 1 Manual Loads 0 Difficulty Rogue Special Mode None Game No. 35 Rogue 34 Adventurer 1 Explorer 0 Win Type - Total 0 Types 0/0/0/0/0/0/0/0/0 Lore% 20 Gallery% 20 Achievement% 23 Wizard Run 0 Options --------- ASCII 0 Keyboard 0 Movement Mouse Keybinds 0 Fullscreen 1 Font 18/SmallcapsGlow Map View 76x50 Tactical HUD 0 Map Filters NONE Filters NONE Steam 1 RUN: b59b5c61-8566-4ccb-93a9-705ce3fbf21e